bitfinex/quotes_SOLUSD_20250118
["timestamp","ask_amount","ask_price","bid_price","bid_amount"]
[1737195814008,23.776884,241.1,241.02,32.41060379]
[1737195814212,32.41060379,241.06,240.96,32.41060379]
[1737195814515,32.41060379,241.08,241.0,32.41060379]
[1737195814698,32.41060379,241.06,240.98,32.41060379]
[1737195814904,32.41060379,241.04,240.96,32.41060379]
[1737195815104,4.1492,241.01,240.95,32.41060379]
[1737195815400,20.0,240.92,240.82,32.41060379]
[1737195815718,32.41060379,240.86,240.79,32.41060379]
[1737195815909,32.41060379,240.86,240.73,0.62291455]
[1737195816098,32.41060379,240.86,240.79,32.41060379]
[1737195817215,32.41060379,240.9,240.81,32.41060379]
[1737195817998,32.41060379,240.88,240.81,32.41060379]
[1737195818346,4.1509,240.91,240.83,32.41060379]
[1737195818719,4.1509,240.91,240.85,32.41060379]
[1737195818907,36.56150379,240.91,240.83,32.41060379]
[1737195819821,32.41060379,240.89,240.81,32.41060379]
[1737195819997,46.93880379,240.91,240.81,32.41060379]
[1737195820199,46.93880379,240.91,240.83,32.41060379]
[1737195820415,36.56150379,240.91,240.83,32.41060379]
[1737195820619,4.1509,240.91,240.87,32.41060379]
[1737195820823,4.1509,240.91,240.89,32.41060379]
[1737195821023,4.1509,240.91,240.87,32.41060379]
[1737195821322,32.41060379,240.94,240.85,32.41060379]
[1737195821514,32.41060379,240.92,240.83,32.41060379]
[1737195821721,32.41060379,240.9,240.83,32.41060379]
[1737195822028,32.41060379,240.86,240.79,32.41060379]
[1737195822198,32.41060379,240.86,240.77,37.65060379]
[1737195822393,32.41060379,240.93,240.85,32.41060379]
[1737195822697,46.93630379,240.95,240.87,32.41060379]
[1737195823619,4.1499,240.97,240.94,32.41060379]
[1737195823822,14.5246,240.97,240.9,32.41060379]
[1737195824002,46.93520379,240.97,240.88,32.41060379]
[1737195824329,14.5246,240.97,240.9,32.41060379]
[1737195825124,32.41060379,240.93,240.84,32.41060379]
[1737195825321,14.5246,240.97,240.91,32.41060379]
[1737195825840,14.5246,240.97,240.85,0.62251441]
[1737195825841,4.1499,240.97,240.93,32.41060379]
[1737195826017,4.1499,240.97,240.91,32.41060379]
[1737195826493,36.56050379,240.97,240.89,32.41060379]
[1737195826694,4.1499,240.97,240.91,32.41060379]
[1737195827217,32.41060379,240.99,240.84,53.0331833]
[1737195827218,32.41060379,241.01,240.93,32.41060379]
[1737195827813,4.149,241.02,240.97,32.41060379]
[1737195828015,20.51887672,241.24,240.89,0.62240064]
[1737195828016,28.58085407,241.3,241.03,43.776884]
[1737195828197,4.1452,241.24,241.19,32.41060379]
[1737195828822,4.1449,241.26,241.21,32.41060379]
[1737195829019,32.41060379,241.22,241.12,32.41060379]
[1737195829321,32.41060379,241.19,241.1,32.41060379]
[1737195829519,0.03,241.25,241.19,43.776884]
[1737195829828,0.03,241.25,241.24,32.41060379]
[1737195830122,32.41060379,241.25,241.15,32.41060379]
[1737195830326,32.41060379,241.25,241.09,0.62172047]
[1737195830499,32.41060379,241.21,241.12,32.41060379]
[1737195830698,32.41060379,241.23,241.14,32.41060379]
[1737195830906,3.63902904,241.26,241.22,32.41060379]
[1737195831122,4.1442,241.3,241.22,32.41060379]
[1737195831699,32.41060379,241.27,241.09,0.62172754]
[1737195831920,35.2257,241.3,241.08,32.41060379]
[1737195832125,32.41060379,241.25,241.16,32.41060379]
[1737195832299,32.41060379,241.29,241.2,32.41060379]
[1737195832700,32.41060379,241.29,241.22,32.41060321]
[1737195833354,4.1445,241.28,241.22,32.41060321]
[1737195833712,36.55510379,241.28,241.2,32.41060379]
[1737195833928,36.55510379,241.28,241.08,33.03244427]
[1737195833929,4.1445,241.28,241.22,32.41060379]
[1737195834130,46.91650379,241.28,241.2,32.41060379]
[1737195834425,32.41060379,241.26,241.18,32.41060379]
[1737195834810,14.5059,241.28,241.22,32.41060379]
[1737195835017,4.1445,241.28,241.22,32.41060379]
[1737195835216,32.41060379,241.29,241.2,32.41060379]
[1737195835415,32.41060379,241.31,241.22,32.41060379]
[1737195836427,14.5047,241.3,241.22,32.41060379]
[1737195836811,32.41060379,241.23,241.14,32.41060379]
[1737195837227,32.41060379,241.28,241.19,32.41060379]
[1737195837439,14.5047,241.3,241.23,32.41060379]
[1737195837637,4.1442,241.3,241.25,32.41060379]
[1737195837929,42.76720379,241.4,241.29,32.41060379]
[1737195838115,42.76720379,241.4,241.25,5.16]
[1737195838116,42.76720379,241.4,241.33,32.41060379]
[1737195838314,32.41060379,241.38,241.31,32.41060379]
[1737195838708,32.41060379,241.36,241.29,32.41060379]
[1737195839024,32.41060379,241.38,241.29,32.41060379]
[1737195839233,32.41060379,241.38,241.29,28.74060379]
[1737195839934,14.4991,241.4,241.27,32.41060379]
[1737195839935,32.41060379,241.35,241.27,32.41060379]
[1737195840125,32.41060379,241.31,241.23,32.41060379]
[1737195840324,32.41060379,241.33,241.25,32.41060379]
[1737195840514,32.41060379,241.38,241.31,32.41060379]
[1737195841223,32.41060379,241.32,241.26,32.41060379]
[1737195841409,32.41060379,241.32,241.24,32.41060379]
[1737195842407,32.41060379,241.28,241.19,32.41060379]
[1737195842611,32.41060379,241.26,241.19,32.41060379]
[1737195842828,4.1443,241.29,241.25,32.41060379]
[1737195843211,4.1443,241.29,241.23,32.41060379]
[1737195843632,25.3903967,241.42,241.28,32.41060379]
[1737195843633,4.1421,241.42,241.28,32.41060379]
[1737195843812,10.3566,241.4,241.32,32.41060379]
[1737195844013,32.41060379,241.39,241.32,32.41060379]
[1737195844212,32.41060379,241.37,241.3,32.41060379]
[1737195844523,32.41060379,241.39,241.3,32.41060379]
[1737195844724,46.90980379,241.39,241.3,32.41060379]
[1737195845120,32.41060379,241.37,241.3,32.41060379]
[1737195845321,32.41060379,241.35,241.26,32.41060379]
[1737195845634,32.41060379,241.33,241.25,32.41060379]
[1737195846140,32.41060379,241.31,241.23,32.41060379]
[1737195846743,12.55,241.5,241.23,32.41060379]
[1737195846913,12.55,241.5,241.25,32.41060379]
[1737195846914,32.41060379,241.34,241.25,32.41060379]
[1737195847737,23.776884,241.43,241.27,32.41060379]
[1737195847928,32.41060379,241.36,241.27,32.41060379]
[1737195848544,32.41060379,241.38,241.29,32.41060379]
[1737195848721,32.41060379,241.4,241.33,32.41060379]
[1737195848922,4.1426,241.39,241.33,32.41060379]
[1737195850422,4.1426,241.39,241.37,32.41060379]
[1737195850743,0.03,241.48,241.37,32.41060379]
[1737195850943,0.03,241.48,241.44,32.41060379]
[1737195851239,0.03,241.48,241.34,23.776884]
[1737195851240,0.03,241.48,241.46,32.41060379]
[1737195851449,0.03,241.48,241.47,32.41060379]
[1737195852318,0.03,241.48,241.44,32.41060379]
[1737195852642,0.03,241.48,241.38,0.6210395]
[1737195852643,0.03,241.48,241.47,32.41060379]
[1737195853922,0.03,241.48,241.47,0.7572665]
[1737195854534,0.00328449,241.5,241.47,32.41060379]
[1737195855034,0.00328449,241.5,241.46,32.41060379]
[1737195855228,0.00328449,241.5,241.47,32.41060379]
[1737195855542,0.00328449,241.5,241.48,32.41060379]
[1737195856536,0.00328449,241.5,241.49,32.41060379]
[1737195857046,0.00328449,241.5,241.48,32.41060379]
[1737195857345,0.00328449,241.5,241.49,32.41060379]
[1737195858137,0.00328449,241.5,241.45,0.6209348]
[1737195858351,32.41060379,241.47,241.39,32.41060379]
[1737195858647,32.41060379,241.44,241.36,32.41060379]
[1737195858943,32.41060379,241.43,241.35,32.41060379]
[1737195859150,32.41060379,241.4,241.32,32.41060379]
[1737195859339,32.41060379,241.37,241.28,32.41060379]
[1737195859523,32.41060379,241.33,241.26,37.35060379]
[1737195859724,32.41060379,241.38,241.3,32.41060379]
[1737195859918,20.0,241.4,241.3,32.41060379]
[1737195860151,23.776884,241.39,241.24,32.41060379]
[1737195860323,43.776884,241.4,241.26,32.41060379]
[1737195860524,32.41060379,241.35,241.27,32.41060379]
[1737195860725,32.41060379,241.36,241.29,32.41060379]
[1737195861248,32.41060379,241.37,241.3,32.41060379]
[1737195861844,32.41060379,241.32,241.24,32.41060379]
[1737195862047,32.41060379,241.32,241.25,32.41060379]
[1737195862248,32.41060379,241.37,241.3,32.41060379]
[1737195862543,35.2125,241.39,241.23,0.68455535]
[1737195862544,14.4992,241.39,241.23,20.68455535]
[1737195862722,14.4992,241.39,241.24,0.75798848]
[1737195862922,32.41060379,241.38,241.3,32.41060379]
[1737195864035,32.41060379,241.34,241.26,32.41060379]
[1737195864437,32.41060379,241.32,241.24,33.16859227]
[1737195864748,32.41060379,241.32,241.26,32.41060379]
[1737195865055,32.41060379,241.34,241.26,32.41060379]
[1737195865435,32.41060379,241.36,241.28,32.41060379]
[1737195866448,32.41060379,241.36,241.28,32.24108379]
[1737195866844,4.1433,241.35,241.28,32.24108379]
[1737195867653,4.1433,241.35,241.32,32.41060379]
[1737195867833,4.1426,241.39,241.32,32.41060379]
[1737195868037,32.41060379,241.38,241.3,32.41060379]
[1737195868933,14.4992,241.39,241.24,0.75798848]
[1737195868934,32.41060379,241.32,241.24,0.75798848]
[1737195869134,32.41060379,241.32,241.24,32.41060379]
[1737195869336,32.41060379,241.3,241.24,32.41060379]
[1737195869641,32.41060379,241.26,241.23,0.063]
[1737195869842,32.41060379,241.24,241.23,0.063]
[1737195870959,4.1452,241.24,241.23,0.063]
[1737195871153,36.55580379,241.24,241.23,0.063]
[1737195871455,36.55580379,241.24,241.23,0.0001]
[1737195871642,4.1452,241.24,241.23,0.0001]
[1737195872830,20.7185,241.33,241.23,0.0001]
[1737195873055,32.41060379,241.28,241.23,0.0001]
[1737195873936,4.1447,241.27,241.23,0.0001]
[1737195875446,4.145,241.25,241.23,0.0001]
[1737195876546,0.03,241.27,241.23,0.0001]
[1737195876845,4.1747,241.27,241.23,0.0001]
[1737195878066,32.41060379,241.24,241.23,0.0001]
[1737195878254,56.18748779,241.24,241.08,38.57380822]
[1737195878567,32.41060379,241.15,241.08,38.57380822]
[1737195878948,32.41060379,241.13,241.05,45.6077968]
[1737195879159,32.41060379,241.07,241.05,6.22620443]
[1737195879367,19.82310859,241.06,241.05,6.22620443]
[1737195879573,19.82310859,241.06,241.05,4.43e-06]
[1737195879761,43.776884,241.03,241.0,1.78564134]
[1737195879964,20.0,240.99,240.93,4.925e-05]
[1737195880166,19.82310859,240.99,240.93,4.925e-05]
[1737195880671,19.82310859,241.01,240.93,19.82315784]
[1737195880970,19.82310859,240.99,240.93,4.925e-05]
[1737195881163,4.1487,241.04,240.97,19.82310859]
[1737195881364,4.1483,241.06,241.0,32.2084935]
[1737195881757,0.1,261.8,240.93,4.925e-05]
[1737195881758,1.63319228,241.17,241.07,20.0]
[1737195882071,32.2084935,241.16,241.07,32.2084935]
[1737195882459,32.2084935,241.16,241.09,32.2084935]
[1737195883068,32.2084935,241.16,241.07,32.2084935]
[1737195883262,4.1465,241.17,241.03,32.2084935]
[1737195883263,32.2084935,241.11,241.03,32.2084935]
[1737195883470,32.2084935,241.13,241.03,32.2084935]
[1737195883765,32.2084935,241.13,241.06,32.2084935]
[1737195883965,4.1473,241.12,241.06,32.2084935]
[1737195884672,4.1473,241.12,241.04,32.2084935]
[1737195885365,32.2084935,241.14,241.06,32.2084935]
[1737195885751,32.2084935,241.16,241.08,32.2084935]
[1737195885952,32.2084935,241.18,241.08,32.2084935]
[1737195886159,32.2084935,241.22,241.14,32.2084935]
[1737195886474,32.2084935,241.24,241.16,32.2084935]
[1737195886873,32.2084935,241.24,241.09,0.62198459]
[1737195886874,32.2084935,241.22,241.14,32.2084935]
[1737195887070,32.2084935,241.2,241.12,32.2084935]
[1737195887253,32.2084935,241.18,241.1,32.2084935]
[1737195888479,4.1464,241.17,241.1,32.2084935]
[1737195888653,32.2084935,241.16,241.08,0.063]
[1737195888849,32.2084935,241.15,241.08,0.063]
[1737195889054,32.2084935,241.21,241.11,32.2084935]
[1737195889359,36.3538935,241.23,241.15,32.2084935]
[1737195889964,0.03,241.24,241.19,32.2084935]
[1737195890150,0.03,241.24,241.21,32.2084935]
[1737195891172,0.03,241.24,241.15,32.2084935]
[1737195891752,0.03,241.24,241.17,32.2084935]
[1737195891960,0.03,241.24,241.19,32.2084935]
[1737195892177,0.03,241.24,241.23,32.2084935]
[1737195892881,0.03,241.24,241.21,32.2084935]
[1737195893402,0.03,241.24,241.17,32.2084935]
[1737195893577,32.2084935,241.23,241.14,32.2084935]
[1737195895185,36.3539935,241.23,241.14,32.2084935]
[1737195895858,32.2084935,241.23,241.14,32.2084935]
[1737195896768,32.2084935,241.21,241.12,32.2084935]
[1737195897168,32.2084935,241.23,241.14,32.2084935]
[1737195897369,36.3538935,241.23,241.14,32.2084935]
[1737195898289,0.03,241.24,241.16,32.2084935]
[1737195898781,0.03,241.24,241.23,32.2084935]
[1737195899389,0.03,241.24,241.21,32.2084935]
[1737195900697,0.00328449,241.5,241.24,10.2786]
[1737195900865,0.00328449,241.5,241.45,32.2084935]
[1737195901069,1.64473033,241.63,241.45,37.0084935]
[1737195901070,4.139,241.61,241.45,37.0084935]
[1737195901270,32.2084935,241.62,241.55,32.2084935]
[1737195901473,4.1686,241.63,241.46,0.62094686]
[1737195901769,0.03,241.63,241.5,32.52]
[1737195902000,0.03,241.63,241.55,20.0]
[1737195902294,0.03,241.63,241.56,1.37764614]
[1737195902590,0.03,241.63,241.62,19.73233843]
[1737195903399,0.03,241.63,241.62,32.04387997]
[1737195904189,0.03,241.63,241.62,32.66441789]
[1737195904505,0.03,241.75,241.65,20.0]
[1737195904795,0.03,241.75,241.72,32.04387997]
[1737195904998,0.03,241.75,241.7,32.04387997]
[1737195905201,0.03,241.75,241.72,32.04387997]
[1737195905979,0.03,241.75,241.7,32.04387997]
[1737195906182,0.03,241.75,241.72,32.04387997]
[1737195907604,0.24811,241.83,241.74,76.60775994]
[1737195907783,0.0561526,241.88,241.82,64.08775994]
[1737195907979,0.0561526,241.88,241.83,5.41994492]
[1737195908207,0.0561526,241.88,241.76,2.70914492]
[1737195908436,0.0561526,241.88,241.77,4.8]
[1737195908579,0.0561526,241.88,241.78,0.62000404]
[1737195908779,0.0561526,241.88,241.78,1.3762996]
[1737195908980,0.0561526,241.88,241.79,0.75626429]
[1737195909181,0.0561526,241.88,241.8,0.61995858]
[1737195909387,0.0561526,241.88,241.86,32.04387997]
[1737195909586,4.174,242.01,241.87,33.41980082]
[1737195909877,4.174,242.01,241.89,84.08775994]
[1737195910092,4.174,242.01,241.99,32.04387997]
[1737195910305,20.24825175,242.23,241.99,36.94387997]
[1737195910476,0.05799487,242.27,242.2,32.04387997]
[1737195910477,4.128,242.25,242.2,32.04387997]
[1737195910681,107.28675441,242.24,242.22,32.04387997]
[1737195910993,105.65890928,242.24,242.22,32.04387997]
[1737195912080,0.22891895,242.32,242.23,32.79877054]
[1737195912300,20.64098045,242.48,242.24,9.32983807]
[1737195912528,35.40967693,242.5,242.25,7.31857173]
[1737195912712,35.40967693,242.5,242.35,32.04387997]
[1737195912713,32.04387997,242.48,242.35,32.04387997]
[1737195912911,4.1245,242.45,242.35,32.79839675]
[1737195913230,32.04387997,242.43,242.32,32.04387997]
[1737195913404,32.04387997,242.41,242.33,1.37328186]
[1737195913607,32.04387997,242.44,242.34,32.79842788]
[1737195914032,32.04387997,242.44,242.35,0.75451678]
[1737195914216,10.3133,242.41,242.21,0.61869915]
[1737195914521,32.04387997,242.28,242.22,0.75492173]
[1737195914821,4.128,242.25,242.13,32.04387997]
[1737195915020,4.128,242.25,241.85,153.44405102]
[1737195915021,7.557,242.21,241.8,142.8467]
[1737195915321,7.557,242.21,241.81,6.55580823]
[1737195915521,20.0,242.18,241.82,0.75617046]
[1737195915713,20.0,242.18,241.83,0.6195089]
[1737195915927,32.04387997,242.01,241.9,32.04387997]
[1737195916116,32.04387997,242.03,241.94,32.04387997]
[1737195916314,32.04387997,241.99,241.95,1.37537233]
[1737195916531,32.04387997,242.05,241.96,32.79961291]
[1737195916718,32.04387997,242.05,241.97,1.37525971]
[1737195917023,32.04387997,242.07,241.98,32.79955045]
[1737195917216,32.04387997,242.03,241.99,0.61950665]
[1737195917534,32.04387997,242.01,241.98,0.75567048]
[1737195918007,4.1289,242.19,242.0,20.0]
[1737195918225,32.04387997,242.09,242.01,33.41882165]
[1737195918404,32.04387997,242.03,242.01,0.7555768]
[1737195918618,32.04387997,242.03,241.9,0.61969459]
[1737195918809,32.04387997,241.92,241.91,0.75588914]
[1737195919040,32.04387997,241.92,241.84,5.2]
[1737195919220,32.04387997,241.92,241.85,0.75607667]
[1737195919619,20.0,242.0,241.85,0.75607667]
[1737195920027,32.04387997,241.86,241.85,0.75607667]
[1737195920534,32.04387997,241.86,241.79,0.62006456]
[1737195920728,32.04387997,241.83,241.8,0.75623301]
[1737195920936,32.04387997,241.92,241.8,0.75623301]
[1737195920937,32.04387997,241.85,241.8,0.75623301]
[1737195921239,32.04387997,241.89,241.81,32.66385041]
[1737195921440,32.04387997,241.89,241.82,0.75617046]
[1737195921612,32.04387997,241.89,241.83,0.61991097]
[1737195921938,32.04387997,241.89,241.84,0.75610793]
[1737195922116,32.04387997,241.86,241.84,0.75610793]
[1737195922512,14.4641,241.98,241.84,0.75610793]
[1737195922720,32.04387997,241.85,241.84,0.75610793]
[1737195923233,32.04387997,242.04,241.84,0.75610793]
[1737195923473,32.04387997,241.94,241.85,0.61980298]
[1737195923737,32.04387997,241.92,241.85,0.61980298]
[1737195923924,32.04387997,241.92,241.86,0.7560454]
[1737195924135,32.04387997,241.9,241.86,0.7560454]
[1737195924520,32.04387997,241.88,241.86,0.7560454]
[1737195925233,11.983483,242.0,241.86,0.7560454]
[1737195925422,32.04387997,241.91,241.86,0.7560454]
[1737195925622,32.04387997,241.87,241.86,0.7560454]
[1737195926317,32.04387997,241.89,241.86,0.7560454]
[1737195927224,32.04387997,241.88,241.86,0.7560454]
[1737195927429,20.0,241.84,241.47,5.9335]
[1737195927643,32.04387997,241.73,241.63,32.04387997]
[1737195927845,32.04387997,241.75,241.65,32.04387997]
[1737195928042,32.04387997,241.75,241.66,0.31161934]
[1737195928249,32.04387997,241.75,241.67,32.04387997]
[1737195928436,32.04387997,241.75,241.66,0.31161934]
[1737195928735,32.04387997,241.75,241.67,32.04387997]
[1737195929047,32.04387997,241.75,241.68,0.31157883]
[1737195929346,11.4495,241.88,241.69,32.04387997]
[1737195929546,32.04387997,241.82,241.74,32.04387997]
[1737195929746,32.04387997,241.82,241.75,0.31131334]
[1737195930632,32.04387997,241.78,241.73,0.31131472]
[1737195931036,32.04387997,241.78,241.71,0.31151214]
[1737195931233,32.04387997,241.8,241.72,32.04387997]
[1737195931433,32.04387997,241.8,241.73,0.3114726]
[1737195931974,32.04387997,241.78,241.73,0.3114726]
[1737195932455,32.04387997,241.82,241.74,32.04387997]
[1737195932651,32.04387997,241.82,241.75,0.31131835]
[1737195933170,32.04387997,241.88,241.8,32.04387997]
[1737195933467,7.3152,241.98,241.87,32.04387997]
[1737195933468,32.04387997,241.97,241.87,32.04387997]
[1737195933631,32.04387997,241.97,241.89,32.04387997]
[1737195933829,32.04387997,241.95,241.87,32.04387997]
[1737195934140,32.04387997,241.93,241.85,32.04387997]
[1737195934334,7.3152,241.98,241.81,32.04387997]
[1737195934335,32.04387997,241.89,241.81,32.04387997]
[1737195934541,32.04387997,241.89,241.68,37.97737997]
[1737195934542,32.04387997,241.85,241.76,32.04387997]
[1737195934745,32.04387997,241.92,241.77,0.31117376]
[1737195934944,32.04387997,241.84,241.77,0.31117376]
[1737195935551,32.04387997,241.78,241.75,5.18]
[1737195935731,32.04387997,241.8,241.75,5.18]
[1737195936127,32.04387997,241.82,241.75,5.18]
[1737195936532,32.04387997,241.84,241.75,5.49139957]
[1737195936830,32.04387997,241.95,241.86,20.0]
[1737195937025,32.04387997,242.02,241.94,32.04387997]
[1737195937346,32.04387997,242.02,241.95,0.31009952]
[1737195937549,32.04387997,242.0,241.95,0.31009952]
[1737195938044,32.04387997,242.02,241.95,0.31009952]
[1737195938497,7.3152,242.07,241.98,32.04387997]
[1737195938757,32.04387997,242.07,242.0,32.04387997]
[1737195938936,0.03,242.08,242.01,0.30976653]
[1737195939137,32.04387997,242.06,242.01,0.30976653]
[1737195939546,0.03,242.08,242.01,0.30976653]
[1737195939738,32.07387997,242.08,242.01,0.30976653]
[1737195940259,29.24505183,242.07,242.01,0.30976653]
[1737195940762,29.24505183,242.07,242.02,32.04387997]
[1737195941057,29.24505183,242.07,242.04,32.04387997]
[1737195941245,29.24505183,242.07,242.06,32.04387997]
[1737195941859,29.24505183,242.07,242.06,55.82076397]
[1737195942366,27.29725183,242.07,242.06,55.82076397]
[1737195942868,25.39065183,242.07,242.06,68.34076397]
[1737195943040,25.39065183,242.07,242.06,55.82076397]
[1737195943245,25.39065183,242.07,242.06,32.04387997]
[1737195943460,25.39065183,242.07,242.02,32.04387997]
[1737195943646,32.04387997,242.04,241.96,32.04387997]
[1737195943964,32.04387997,242.02,241.97,0.3100211]
[1737195944261,32.04387997,242.04,241.97,0.3100211]
[1737195944558,25.39065183,242.07,241.98,32.04387997]
[1737195944863,25.39065183,242.07,242.02,32.04387997]
[1737195945062,25.39065183,242.07,242.03,0.30973849]
[1737195945657,25.39065183,242.07,242.05,20.0]
[1737195945857,25.39065183,242.07,242.05,52.04387997]
[1737195946161,25.39065183,242.07,241.99,32.04387997]
[1737195946365,32.04387997,242.03,242.0,0.30975388]
[1737195946552,32.04387997,242.03,241.95,0.31003972]
[1737195946937,25.39065183,242.07,241.95,0.31003972]
[1737195946938,32.04387997,241.97,241.95,0.31003972]
[1737195947137,32.04387997,242.01,241.94,32.04387997]
[1737195947342,32.04387997,242.04,241.96,32.04387997]
[1737195947562,32.04387997,242.04,241.97,0.31002536]
[1737195947857,57.4345318,242.07,241.98,32.04387997]
[1737195948061,57.4345318,242.07,241.99,0.30994351]
[1737195948459,25.39065183,242.07,242.0,32.04387997]
[1737195948661,25.39065183,242.07,242.03,32.04387997]
[1737195948841,25.39065183,242.07,241.93,23.776884]
[1737195948842,25.39065183,242.07,242.05,32.04387997]
[1737195949046,25.42065183,242.07,242.05,32.04387997]
[1737195949852,25.42065183,242.07,242.05,32.35327074]
[1737195950053,25.42065183,242.07,242.05,32.04387997]
[1737195950262,1.65065183,242.07,242.06,12.52]
[1737195950465,32.04387997,242.3,242.13,20.0]
[1737195950673,32.04387997,242.3,242.22,32.04387997]
[1737195950851,32.04387997,242.27,242.23,0.30828908]
[1737195951051,32.04387997,242.29,242.19,0.30848834]
[1737195951251,32.04387997,242.29,242.2,32.04387997]
[1737195951451,4.1567,242.32,242.12,0.30846097]
[1737195951651,20.0,242.29,242.08,38.08366815]
[1737195951855,20.0,242.23,241.97,0.30935559]
[1737195952067,20.0,242.23,241.99,5.14]
[1737195952276,23.776884,242.21,241.99,5.14]
[1737195952470,2.1146,242.2,242.0,0.30967852]
[1737195952969,32.04387997,242.1,242.01,32.04387997]
[1737195953183,32.04387997,242.06,241.99,5.14]
[1737195953373,32.04387997,242.04,241.97,0.30984273]
[1737195953882,32.04387997,242.06,241.97,32.3537227]
[1737195954081,32.04387997,242.08,241.99,32.04387997]
[1737195954282,32.04387997,242.08,242.0,0.30970504]
[1737195954478,32.04387997,242.1,242.04,20.0]
[1737195954677,32.04387997,242.12,242.05,0.30953207]
[1737195954968,32.04387997,242.2,242.11,32.04387997]
[1737195955268,32.04387997,242.23,242.14,52.04387997]
[1737195955467,32.04387997,242.23,242.15,0.30881358]
[1737195955674,32.04387997,242.25,242.16,32.04387997]
[1737195955860,32.04387997,242.25,242.17,0.30861676]
[1737195956285,2.1146,242.29,242.18,32.04387997]
[1737195956465,32.04387997,242.28,242.19,0.30847981]
[1737195956787,32.04387997,242.24,242.19,0.30847981]
[1737195957072,32.04387997,242.27,242.19,0.30847981]
[1737195957254,32.04387997,242.31,242.21,32.04387997]
[1737195957449,32.04387997,242.31,242.22,0.30827611]
[1737195957653,0.03,242.32,242.29,32.04387997]
[1737195957970,0.03,242.32,242.31,32.04387997]
[1737195958167,0.03,242.32,242.31,44.56387997]
[1737195958392,0.03,242.32,242.31,49.68387997]
[1737195958675,0.03,242.32,242.31,73.46076397]
[1737195959067,0.03,242.32,242.31,37.16387997]
[1737195959266,0.03,242.32,242.31,37.47112835]
[1737195960056,0.03,242.32,242.31,49.99112835]
[1737195961077,15.0,242.5,242.35,12.52]
[1737195961286,15.0,242.5,242.35,44.87085132]
[1737195961582,15.0,242.5,242.35,100.69161529]
[1737195961769,15.0,242.5,242.35,44.87085132]
[1737195962075,47.04387997,242.5,242.35,44.87085132]
[1737195962281,15.0,242.5,242.35,68.64773532]
[1737195962778,15.0,242.5,242.35,100.69161529]
[1737195962967,15.0,242.5,242.35,68.64773532]
[1737195963165,47.04387997,242.5,242.35,32.35085132]
[1737195963482,4.1198,242.73,242.35,220.06924807]
[1737195963682,32.04387997,242.6,242.52,32.04387997]
[1737195963854,32.04387997,242.62,242.53,5.48621567]
[1737195964056,32.04387997,242.62,242.57,20.0]
[1737195964253,32.04387997,242.64,242.58,0.30602817]
[1737195964760,32.04387997,242.64,242.59,25.2]
[1737195964960,32.04387997,242.62,242.58,0.30602817]
[1737195965163,32.04387997,242.62,242.55,0.30622072]
[1737195965364,32.04387997,242.64,242.56,32.04387997]
[1737195965577,32.04387997,242.64,242.57,0.30619486]
[1737195965971,32.04387997,242.62,242.52,32.04387997]
[1737195966270,32.04387997,242.62,242.51,5.2]
[1737195966271,32.04387997,242.62,242.54,32.04387997]
[1737195966476,32.04387997,242.64,242.55,0.30626877]
[1737195966778,32.04387997,242.58,242.49,32.04387997]
[1737195966988,32.04387997,242.58,242.4,32.04387997]
[1737195966989,32.04387997,242.56,242.5,0.30656594]
[1737195967192,32.04387997,242.56,242.47,32.04387997]
[1737195967480,0.77298046,242.63,242.5,32.04387997]
[1737195967675,32.04387997,242.62,242.54,32.04387997]
[1737195967982,32.04387997,242.64,242.55,0.30619411]
[1737195968507,32.04387997,242.62,242.55,0.30619411]
[1737195968662,32.04387997,242.64,242.56,32.04387997]
[1737195968862,32.04387997,242.66,242.58,32.04387997]
[1737195969155,32.04387997,242.66,242.59,0.30600018]
[1737195969979,32.04387997,242.6,242.5,32.04387997]
[1737195970279,32.04387997,242.58,242.51,0.30652601]
[1737195970886,32.04387997,242.6,242.52,32.04387997]
[1737195971269,4.1208,242.67,242.54,32.04387997]
[1737195971270,32.04387997,242.62,242.54,32.04387997]
[1737195971470,32.04387997,242.62,242.55,0.30642889]
[1737195971877,32.04387997,242.64,242.55,0.30642889]
[1737195972078,32.04387997,242.62,242.55,0.30642889]
[1737195972466,32.04387997,242.64,242.56,32.04387997]
[1737195973180,32.04387997,242.64,242.57,0.3062774]
[1737195973390,32.04387997,242.64,242.56,32.04387997]
[1737195973584,0.03,242.67,242.52,32.04387997]
[1737195973769,32.04387997,242.62,242.53,0.3064749]
[1737195973967,32.04387997,242.56,242.47,0.30656927]
[1737195974180,32.04387997,242.64,242.34,0.063]
[1737195974181,32.04387997,242.5,242.39,5.2]
[1737195974388,32.04387997,242.52,242.43,32.04387997]
[1737195974572,34.02547997,242.54,242.47,32.04387997]
[1737195974884,34.02547997,242.54,242.45,32.04387997]
[1737195975694,32.04387997,242.52,242.43,32.04387997]